fUST/lending_fUST_20250130
["ID","MTS","AMOUNT","RATE_DAILY","PERIOD"]
[350905353,1738183842054,-200.75526,0.00016575,2]
[350905355,1738183842063,-545.33,0.00016575,2]
[350905357,1738183842073,-200.75526,0.00016575,2]
[350905359,1738183842082,-1683.36,0.00016575,2]
[350905361,1738183842092,-792.85,0.00016575,2]
[350905363,1738183842102,-500.0,0.00016575,2]
[350905365,1738183842114,-2099.15,0.00016575,2]
[350905367,1738183842123,-151.0,0.00016575,2]
[350905369,1738183842133,-500.0,0.00016575,2]
[350905371,1738183842142,-736.87,0.00016575,2]
[350905373,1738183842151,-9012.02,0.00016575,2]
[350905375,1738183842161,-3107.3,0.00016575,2]
[350905377,1738183842171,-500.0,0.00016575,2]
[350905379,1738183842180,-590.39,0.00016575,2]
[350905381,1738183842191,-28967.93,0.00016575,2]
[350905383,1738183842200,-151.0,0.00016575,2]
[350905385,1738183842209,-2343.77,0.00016575,2]
[350905387,1738183842218,-500.0,0.00016575,2]
[350905389,1738183842227,-1112.37,0.00016575,2]
[350905391,1738183842237,-500.0,0.00016575,2]
[350905393,1738183842247,-1533.44,0.00016575,2]
[350905395,1738183842257,-937.2,0.00016575,2]
[350905397,1738183842266,-500.0,0.00016575,2]
[350905399,1738183842274,-2567.3,0.00016575,2]
[350905401,1738183842283,-834.56,0.00016575,2]
[350905402,1738183842293,-243.269686,0.00016575,2]
[350905405,1738183842302,-889.07,0.00016575,2]
[350905406,1738183842311,-1012.35,0.00016575,2]
[350905408,1738183842321,-243.269686,0.00016575,2]
[350905410,1738183842331,-151.0,0.00016575,2]
[350905412,1738183842340,-151.0,0.00016575,2]
[350905414,1738183842350,-500.0,0.00016575,2]
[350905416,1738183842359,-1232.38,0.00016575,2]
[350905418,1738183842368,-1187.18,0.00016575,2]
[350905420,1738183842378,-500.0,0.00016575,2]
[350905422,1738183842387,-151.0,0.00016575,2]
[350905424,1738183842398,-1435.78,0.00016575,2]
[350905426,1738183842407,-151.0,0.00016575,2]
[350905428,1738183842417,-500.0,0.00016575,2]
[350905430,1738183842426,-726.76,0.00016575,2]
[350905432,1738183842435,-151.0,0.00016575,2]
[350905434,1738183842445,-285.230803,0.00016575,2]
[350905436,1738183842454,-500.0,0.00016575,2]
[350905438,1738183842463,-500.0,0.00016575,2]
[350905441,1738183842473,-151.0,0.00016575,2]
[350905442,1738183842482,-500.0,0.00016575,2]
[350905444,1738183842491,-500.0,0.00016575,2]
[350905446,1738183842502,-151.0,0.00016575,2]
[350905448,1738183842511,-1228.54,0.00016575,2]
[350905450,1738183842521,-500.0,0.00016575,2]
[350905452,1738183842531,-500.0,0.00016575,2]
[350905454,1738183842540,-500.0,0.00016575,2]
[350905456,1738183842549,-500.0,0.00016575,2]
[350905459,1738183842559,-500.0,0.00016575,2]
[350905461,1738183842568,-542.15097919,0.00016575,2]
[350905463,1738183842577,-3000.0,0.0001659,2]
[350905465,1738183842587,-6783.62824715,0.0001659,2]
[350905466,1738183842595,-150.0,0.0001669,2]
[350905468,1738183842604,-1656.368,0.0001669,2]
[350905470,1738183842614,-150.0,0.0001669,2]
[350905473,1738183842623,-395.0,0.0001669,2]
[350905474,1738183842632,-1801.35,0.000167,2]
[350905476,1738183842641,-502.54391737,0.00016711,2]
[350905478,1738183842653,-500.0,0.00016712,2]
[350905480,1738183842663,-531.57555465,0.00016712,2]
[350905482,1738183842672,-500.0,0.00016712,2]
[350905484,1738183842681,-500.0,0.00016712,2]
[350905486,1738183842690,-500.0,0.00016712,2]
[350905489,1738183842699,-500.0,0.00016712,2]
[350905491,1738183842710,-500.0,0.00016712,2]
[350905493,1738183842719,-500.0,0.00016712,2]
[350905495,1738183842729,-500.0,0.00016712,2]
[350905497,1738183842738,-1026.64,0.00016712,2]
[350905499,1738183842747,-500.0,0.00016712,2]
[350905501,1738183842756,-500.0,0.00016712,2]
[350905503,1738183842766,-151.0,0.00016712,2]
[350905505,1738183842775,-151.0,0.00016712,2]
[350905506,1738183842784,-151.927478,0.00016712,2]
[350905508,1738183842794,-152.356257,0.00016712,2]
[350905510,1738183842803,-500.0,0.00016712,2]
[350905512,1738183842813,-500.0,0.00016712,2]
[350905514,1738183842822,-500.0,0.00016712,2]
[350905516,1738183842833,-151.0,0.00016712,2]
[350905518,1738183842842,-151.0,0.00016712,2]
[350905520,1738183842851,-515.74,0.00016712,2]
[350905522,1738183842860,-692.01,0.00016712,2]
[350905524,1738183842870,-649.35,0.00016712,2]
[350905526,1738183842879,-500.0,0.00016712,2]
[350905528,1738183842889,-500.0,0.00016712,2]
[350905531,1738183842906,-500.0,0.00016712,2]
[350905533,1738183842915,-500.0,0.00016712,2]
[350905535,1738183842924,-500.0,0.00016712,2]
[350905537,1738183842934,-496.70395487,0.00016712,2]
[350905538,1738183842944,-796.2,0.00016712,2]
[350905540,1738183842953,-151.0,0.00016712,2]
[350905541,1738183842963,-156.257349,0.00016712,2]
[350905542,1738183842973,-1031.44,0.00016712,2]
[350905543,1738183842983,-500.0,0.00016712,2]
[350905544,1738183842992,-618.3,0.00016712,2]
[350905545,1738183843002,-585.3,0.00016712,2]
[350905546,1738183843011,-152.218912,0.00016712,2]
[350905547,1738183843021,-500.0,0.00016712,2]
[350905549,1738183843031,-560.82,0.00016712,2]
[350905550,1738183843041,-596.57,0.00016712,2]
[350905551,1738183843051,-500.0,0.00016712,2]
[350905552,1738183843061,-500.0,0.00016712,2]
[350905553,1738183843071,-500.0,0.00016712,2]
[350905555,1738183843081,-151.0,0.00016712,2]
[350905557,1738183843090,-500.0,0.00016712,2]
[350905559,1738183843100,-500.0,0.00016712,2]
[350905560,1738183843112,-151.0,0.00016712,2]
[350905561,1738183843123,-500.0,0.00016712,2]
[350905563,1738183843132,-639.45,0.00016712,2]
[350905565,1738183843143,-746.85,0.00016712,2]
[350905568,1738183843154,-534.79563372,0.00016712,2]
[350905570,1738183843163,-500.0,0.00016712,2]
[350905572,1738183843173,-500.0,0.00016712,2]
[350905574,1738183843182,-510.04,0.00016712,2]
[350905576,1738183843193,-500.0,0.00016712,2]
[350905578,1738183843202,-500.0,0.00016712,2]
[350905580,1738183843211,-1558.37,0.00016712,2]
[350905598,1738183843318,-500.0,0.00016712,2]
[350905601,1738183843328,-500.0,0.00016712,2]
[350905604,1738183843337,-151.0,0.00016712,2]
[350905606,1738183843346,-500.0,0.00016712,2]
[350905608,1738183843356,-500.0,0.00016712,2]
[350905609,1738183843365,-535.11,0.00016712,2]
[350905611,1738183843375,-500.0,0.00016712,2]
[350905612,1738183843384,-151.0,0.00016712,2]
[350905613,1738183843395,-3315.7,0.00016712,2]
[350905614,1738183843405,-151.0,0.00016712,2]
[350905615,1738183843414,-151.0,0.00016712,2]
[350905616,1738183843423,-6033.6,0.00016712,2]
[350905617,1738183843432,-8526.14,0.00016712,2]
[350905618,1738183843442,-500.0,0.00016712,2]
[350905620,1738183843452,-523.18,0.00016712,2]
[350905622,1738183843461,-500.0,0.00016712,2]
[350905624,1738183843470,-9708.38,0.00016712,2]
[350905626,1738183843480,-1316.49,0.00016712,2]
[350905628,1738183843489,-2933.43,0.00016712,2]
[350905630,1738183843498,-3883.59,0.00016712,2]
[350905632,1738183843508,-703.57,0.00016712,2]
[350905634,1738183843517,-2749.65,0.00016712,2]
[350905636,1738183843527,-151.0,0.00016712,2]
[350905638,1738183843537,-200.683109,0.00016712,2]
[350905640,1738183843546,-151.0,0.00016712,2]
[350905642,1738183843556,-151.0,0.00016712,2]
[350905644,1738183843565,-500.0,0.00016712,2]
[350905646,1738183843575,-618.36,0.00016712,2]
[350905648,1738183843584,-500.0,0.00016712,2]
[350905650,1738183843593,-1156.66,0.00016712,2]
[350905652,1738183843604,-500.0,0.00016712,2]
[350905654,1738183843613,-151.0,0.00016712,2]
[350905656,1738183843622,-625.82,0.00016712,2]
[350905658,1738183843632,-151.0,0.00016712,2]
[350905660,1738183843642,-500.0,0.00016712,2]
[350905662,1738183843654,-557.2958057,0.00016712,2]
[350905664,1738183843663,-151.0,0.00016712,2]
[350905666,1738183843672,-259.21136,0.00016712,2]
[350905668,1738183843681,-1866.12,0.00016712,2]
[350905670,1738183843690,-748.16,0.00016712,2]
[350905672,1738183843699,-728.59,0.00016712,2]
[350905674,1738183843709,-500.0,0.00016712,2]
[350905676,1738183843719,-200.75526,0.00016712,2]
[350905678,1738183843728,-200.75526,0.00016712,2]
[350905680,1738183843738,-545.33,0.00016712,2]
[350905681,1738183843747,-200.75526,0.00016712,2]
[350905684,1738183843757,-200.75526,0.00016712,2]
[350905686,1738183843767,-1683.36,0.00016712,2]
[350905688,1738183843777,-792.85,0.00016712,2]
[350905691,1738183843786,-2099.15,0.00016712,2]
[350905694,1738183843796,-151.0,0.00016712,2]
[350905696,1738183843806,-151.0,0.00016712,2]
[350905698,1738183843814,-736.87,0.00016712,2]
[350905700,1738183843823,-9012.02,0.00016712,2]
[350905702,1738183843833,-3107.3,0.00016712,2]
[350905704,1738183843843,-500.0,0.00016712,2]
[350905706,1738183843853,-590.39,0.00016712,2]
[350905708,1738183843862,-28967.93,0.00016712,2]
[350905710,1738183843872,-151.0,0.00016712,2]
[350905712,1738183843882,-151.0,0.00016712,2]
[350905714,1738183843895,-2343.77,0.00016712,2]
[350905716,1738183843905,-163.6942976,0.00016712,2]
[350905718,1738183843914,-1112.37,0.00016712,2]
[350905720,1738183843924,-500.0,0.00016712,2]
[350905722,1738183843933,-1533.44,0.00016712,2]
[350905723,1738183843942,-937.2,0.00016712,2]
[350905726,1738183843952,-500.0,0.00016712,2]
[350905728,1738183843961,-2567.3,0.00016712,2]
[350905730,1738183843971,-834.56,0.00016712,2]
[350905732,1738183843980,-243.269686,0.00016712,2]
[350905734,1738183843990,-243.269686,0.00016712,2]
[350905736,1738183843999,-889.07,0.00016712,2]
[350905738,1738183844008,-1012.35,0.00016712,2]
[350905739,1738183844018,-243.269686,0.00016712,2]
[350905741,1738183844028,-243.269686,0.00016712,2]
[350905743,1738183844037,-151.0,0.00016712,2]
[350905745,1738183844046,-151.0,0.00016712,2]
[350905747,1738183844056,-151.0,0.00016712,2]
[350905749,1738183844065,-151.0,0.00016712,2]
[350905751,1738183844075,-1232.38,0.00016712,2]
[350905753,1738183844085,-1187.18,0.00016712,2]
[350905755,1738183844094,-500.0,0.00016712,2]
[350905757,1738183844106,-151.0,0.00016712,2]
[350905759,1738183844119,-151.0,0.00016712,2]
[350905761,1738183844129,-1435.78,0.00016712,2]
[350905763,1738183844139,-151.0,0.00016712,2]
[350905765,1738183844153,-151.0,0.00016712,2]
[350905767,1738183844162,-500.0,0.00016712,2]
[350905769,1738183844171,-726.76,0.00016712,2]
[350905771,1738183844181,-500.0,0.00016712,2]
[350905773,1738183844191,-151.0,0.00016712,2]
[350905775,1738183844200,-151.0,0.00016712,2]
[350905777,1738183844210,-500.0,0.00016712,2]
[350905779,1738183844219,-151.0,0.00016712,2]
[350905781,1738183844229,-1228.54,0.00016712,2]
[350905783,1738183844239,-151.0,0.00016712,2]
[350905785,1738183844248,-500.0,0.00016712,2]
[350905787,1738183844258,-500.0,0.00016712,2]
[350905789,1738183844268,-500.0,0.00016712,2]
[350905791,1738183844278,-7297.98,0.000168,2]
[350905793,1738183844287,-5550.21,0.000168,2]
[350905795,1738183844297,-151.0,0.000168,2]
[350905797,1738183844307,-151.0,0.000168,2]
[350905799,1738183844316,-151.0,0.00016805,3]
[350905801,1738183844327,-500.0,0.00016849,2]
[350905803,1738183844337,-500.0,0.00016849,2]
[350905805,1738183844347,-500.0,0.00016849,2]
[350905807,1738183844356,-500.0,0.00016849,2]
[350905809,1738183844366,-500.0,0.00016849,2]
[350905811,1738183844376,-500.0,0.00016849,2]
[350905813,1738183844385,-1026.64,0.00016849,2]
[350905815,1738183844400,-500.0,0.00016849,2]
[350905817,1738183844409,-500.0,0.00016849,2]
[350905819,1738183844418,-151.0,0.00016849,2]
[350905821,1738183844430,-500.0,0.00016849,2]
[350905823,1738183844439,-478.5155205,0.00016849,2]
[350905825,1738183844449,-500.0,0.00016849,2]
[350905827,1738183844459,-151.0,0.00016849,2]
[350905829,1738183844469,-515.74,0.00016849,2]
[350905831,1738183844478,-692.01,0.00016849,2]
[350905833,1738183844489,-649.35,0.00016849,2]
[350905835,1738183844498,-500.0,0.00016849,2]
[350905837,1738183844507,-500.0,0.00016849,2]
[350905839,1738183844517,-500.0,0.00016849,2]
[350905841,1738183844527,-796.2,0.00016849,2]
[350905843,1738183844537,-1031.44,0.00016849,2]
[350905844,1738183844547,-500.0,0.00016849,2]
[350905846,1738183844556,-618.3,0.00016849,2]
[350905848,1738183844566,-585.3,0.00016849,2]
[350905850,1738183844577,-521.91521285,0.00016849,2]
[350905853,1738183844587,-560.82,0.00016849,2]
[350905855,1738183844598,-596.57,0.00016849,2]
[350905856,1738183844609,-500.0,0.00016849,2]
[350905858,1738183844619,-276.96747998,0.00016849,2]
[350905861,1738183844634,-500.0,0.00016849,2]
[350905863,1738183844650,-151.0,0.00016849,2]
[350905865,1738183844659,-151.0,0.00016849,2]
[350905867,1738183844669,-500.0,0.00016849,2]
[350905869,1738183844679,-500.0,0.00016849,2]
[350905871,1738183844689,-151.0,0.00016849,2]
[350905873,1738183844699,-151.0,0.00016849,2]
[350905875,1738183844709,-639.45,0.00016849,2]
[350905877,1738183844718,-746.85,0.00016849,2]
[350905878,1738183844728,-500.0,0.00016849,2]
[350905880,1738183844739,-500.0,0.00016849,2]
[350905882,1738183844749,-510.04,0.00016849,2]
[350905884,1738183844759,-500.0,0.00016849,2]
[350905886,1738183844768,-500.0,0.00016849,2]
[350905888,1738183844778,-1558.37,0.00016849,2]
[350905890,1738183844787,-500.0,0.00016849,2]
[350905893,1738183844799,-151.0,0.00016849,2]
[350905895,1738183844808,-151.0,0.00016849,2]
[350905896,1738183844818,-500.0,0.00016849,2]
[350905899,1738183844827,-500.0,0.00016849,2]
[350905900,1738183844838,-535.11,0.00016849,2]
[350905902,1738183844848,-500.0,0.00016849,2]
[350905905,1738183844858,-3315.7,0.00016849,2]
[350905907,1738183844868,-151.0,0.00016849,2]
[350905909,1738183844877,-151.0,0.00016849,2]
[350905911,1738183844887,-6033.6,0.00016849,2]
[350905912,1738183844900,-8526.14,0.00016849,2]
[350905914,1738183844910,-500.0,0.00016849,2]
[350905916,1738183844920,-523.18,0.00016849,2]
[350905918,1738183844930,-278.12323383,0.00016849,2]
[350905920,1738183844940,-9708.38,0.00016849,2]
[350905923,1738183844951,-1316.49,0.00016849,2]
[350905925,1738183844961,-2933.43,0.00016849,2]
[350905927,1738183844971,-3883.59,0.00016849,2]
[350905929,1738183844981,-703.57,0.00016849,2]
[350905931,1738183844991,-2749.65,0.00016849,2]
[350905933,1738183845004,-151.0,0.00016849,2]
[350905935,1738183845013,-500.0,0.00016849,2]
[350905937,1738183845023,-618.36,0.00016849,2]
[350905939,1738183845036,-500.0,0.00016849,2]
[350905941,1738183845046,-1156.66,0.00016849,2]
[350905943,1738183845056,-500.0,0.00016849,2]
[350905945,1738183845066,-625.82,0.00016849,2]
[350905947,1738183845076,-500.0,0.00016849,2]
[350905949,1738183845086,-151.0,0.00016849,2]
[350905951,1738183845095,-1866.12,0.00016849,2]
[350905953,1738183845107,-748.16,0.00016849,2]
[350905955,1738183845117,-728.59,0.00016849,2]
[350905957,1738183845126,-500.0,0.00016849,2]
[350905959,1738183845136,-200.75526,0.00016849,2]
[350905961,1738183845149,-545.33,0.00016849,2]
[350905963,1738183845159,-200.75526,0.00016849,2]
[350905965,1738183845168,-1683.36,0.00016849,2]
[350905967,1738183845180,-792.85,0.00016849,2]
[350905969,1738183845189,-2099.15,0.00016849,2]
[350905971,1738183845198,-151.0,0.00016849,2]
[350905972,1738183845207,-736.87,0.00016849,2]
[350905974,1738183845216,-9012.02,0.00016849,2]
[350905976,1738183845226,-3107.3,0.00016849,2]
[350905978,1738183845235,-590.39,0.00016849,2]
[350905980,1738183845245,-28967.93,0.00016849,2]
[350905982,1738183845254,-151.0,0.00016849,2]
[350905984,1738183845264,-2343.77,0.00016849,2]
[350905995,1738183845371,-1112.37,0.00016849,2]
[350905997,1738183845383,-500.0,0.00016849,2]
[350905999,1738183845397,-1533.44,0.00016849,2]
[350906001,1738183845407,-937.2,0.00016849,2]
[350906003,1738183845417,-500.0,0.00016849,2]
[350906005,1738183845426,-2567.3,0.00016849,2]
[350906007,1738183845435,-834.56,0.00016849,2]
[350906009,1738183845445,-243.269686,0.00016849,2]
[350906011,1738183845454,-889.07,0.00016849,2]
[350906012,1738183845464,-1012.35,0.00016849,2]
[350906014,1738183845473,-243.269686,0.00016849,2]
[350906016,1738183845483,-151.0,0.00016849,2]
[350906018,1738183845492,-151.0,0.00016849,2]
[350906020,1738183845501,-1232.38,0.00016849,2]
[350906022,1738183845511,-1187.18,0.00016849,2]
[350906024,1738183845519,-500.0,0.00016849,2]
[350906026,1738183845529,-151.0,0.00016849,2]
[350906028,1738183845540,-1435.78,0.00016849,2]
[350906030,1738183845549,-151.0,0.00016849,2]
[350906032,1738183845558,-500.0,0.00016849,2]
[350906034,1738183845567,-726.76,0.00016849,2]
[350906036,1738183845576,-511.36437695,0.00016849,2]
[350906038,1738183845586,-179.047232,0.00016849,2]
[350906040,1738183845596,-500.0,0.00016849,2]
[350906042,1738183845605,-1228.54,0.00016849,2]
[350906044,1738183845615,-151.0,0.00016849,2]
[350906046,1738183845625,-500.0,0.00016849,2]
[350906048,1738183845634,-500.0,0.00016849,2]
[350906050,1738183845647,-500.0,0.00016849,2]
[350906052,1738183845657,-151.0,0.00016879,3]
[350906054,1738183845667,-420.0,0.00016884,2]
[350906056,1738183845677,-150.0,0.000169,2]
[350906058,1738183845687,-151.0,0.00016953,3]
[350906060,1738183845696,-500.0,0.00016986,2]
[350906062,1738183845706,-500.0,0.00016986,2]
[350906064,1738183845716,-500.0,0.00016986,2]
[350906066,1738183845725,-500.0,0.00016986,2]
[350906068,1738183845735,-500.0,0.00016986,2]
[350906070,1738183845744,-1026.64,0.00016986,2]
[350906072,1738183845754,-500.0,0.00016986,2]
[350906074,1738183845764,-513.20101591,0.00016986,2]
[350906076,1738183845779,-151.0,0.00016986,2]
[350906078,1738183845801,-500.0,0.00016986,2]
[350906080,1738183845812,-500.0,0.00016986,2]
[350906082,1738183845822,-151.0,0.00016986,2]
[350906084,1738183845832,-515.74,0.00016986,2]
[350906086,1738183845841,-692.01,0.00016986,2]
[350906088,1738183845851,-649.35,0.00016986,2]
[350906090,1738183845861,-500.0,0.00016986,2]
[350906092,1738183845871,-500.0,0.00016986,2]
[350906094,1738183845880,-500.0,0.00016986,2]
[350906096,1738183845890,-796.2,0.00016986,2]
[350906098,1738183845903,-1031.44,0.00016986,2]
[350906100,1738183845912,-500.0,0.00016986,2]
[350906102,1738183845921,-618.3,0.00016986,2]
[350906104,1738183845931,-585.3,0.00016986,2]
[350906106,1738183845941,-560.82,0.00016986,2]
[350906108,1738183845950,-596.57,0.00016986,2]
[350906110,1738183845960,-500.0,0.00016986,2]
[350906112,1738183845969,-500.0,0.00016986,2]
[350906114,1738183845979,-500.0,0.00016986,2]
[350906116,1738183845988,-151.0,0.00016986,2]
[350906118,1738183845998,-500.0,0.00016986,2]
[350906120,1738183846007,-639.45,0.00016986,2]
[350906122,1738183846016,-746.85,0.00016986,2]
[350906124,1738183846025,-500.0,0.00016986,2]
[350906126,1738183846034,-294.51,0.00016986,2]
[350906128,1738183846043,-510.04,0.00016986,2]
[350906130,1738183846053,-500.0,0.00016986,2]
[350906132,1738183846063,-500.0,0.00016986,2]
[350906134,1738183846072,-1558.37,0.00016986,2]
[350906136,1738183846081,-151.0,0.00016986,2]
[350906138,1738183846091,-500.0,0.00016986,2]
[350906141,1738183846101,-500.0,0.00016986,2]
[350906144,1738183846111,-535.11,0.00016986,2]
[350906147,1738183846124,-500.0,0.00016986,2]
[350906150,1738183846134,-3315.7,0.00016986,2]
[350906152,1738183846148,-151.0,0.00016986,2]
[350906154,1738183846158,-214.435608,0.00016986,2]
[350906157,1738183846168,-6033.6,0.00016986,2]
[350906159,1738183846177,-8526.14,0.00016986,2]
[350906161,1738183846187,-500.0,0.00016986,2]
[350906163,1738183846200,-523.18,0.00016986,2]
[350906166,1738183846210,-9708.38,0.00016986,2]
[350906169,1738183846219,-1316.49,0.00016986,2]
[350906171,1738183846229,-2933.43,0.00016986,2]
[350906174,1738183846239,-3883.59,0.00016986,2]
[350906177,1738183846248,-703.57,0.00016986,2]
[350906180,1738183846258,-2749.65,0.00016986,2]
[350906182,1738183846267,-151.0,0.00016986,2]
[350906184,1738183846277,-500.0,0.00016986,2]
[350906186,1738183846286,-618.36,0.00016986,2]
[350906189,1738183846296,-500.0,0.00016986,2]
[350906192,1738183846305,-1156.66,0.00016986,2]
[350906195,1738183846315,-625.82,0.00016986,2]
[350906197,1738183846326,-500.0,0.00016986,2]
[350906199,1738183846335,-151.0,0.00016986,2]
[350906201,1738183846346,-1866.12,0.00016986,2]
[350906203,1738183846355,-748.16,0.00016986,2]
[350906205,1738183846364,-728.59,0.00016986,2]
[350906207,1738183846374,-500.0,0.00016986,2]
[350906209,1738183846383,-200.75526,0.00016986,2]
[350906211,1738183846392,-200.75526,0.00016986,2]
[350906213,1738183846404,-545.33,0.00016986,2]
[350906215,1738183846414,-200.75526,0.00016986,2]
[350906217,1738183846424,-1683.36,0.00016986,2]
[350906219,1738183846433,-200.75526,0.00016986,2]
[350906221,1738183846442,-792.85,0.00016986,2]
[350906223,1738183846451,-2099.15,0.00016986,2]
[350906225,1738183846462,-254.988544,0.00016986,2]
[350906227,1738183846472,-736.87,0.00016986,2]
[350906229,1738183846482,-9012.02,0.00016986,2]
[350906231,1738183846492,-3107.3,0.00016986,2]
[350906233,1738183846501,-590.39,0.00016986,2]
[350906235,1738183846511,-28967.93,0.00016986,2]
[350906237,1738183846520,-151.0,0.00016986,2]
[350906239,1738183846530,-151.0,0.00016986,2]
[350906241,1738183846540,-2343.77,0.00016986,2]
[350906243,1738183846550,-148.21113488,0.00016986,2]
[350906258,1738183846688,-366.63173664,0.00016986,2]
[350906260,1738183846706,-597.52712848,0.00016986,2]
[350906261,1738183846715,-500.0,0.00016986,2]
[350906262,1738183846724,-1319.91263452,0.00016986,2]
[350906263,1738183846736,-213.52736548,0.00016986,2]
[350906264,1738183846746,-937.2,0.00016986,2]
[350906265,1738183846756,-325.67263451,0.00016986,2]
[350906266,1738183846768,-174.32736549,0.00016986,2]
[350906267,1738183846778,-2567.3,0.00016986,2]
[350906268,1738183846787,-834.56,0.00016986,2]
[350906269,1738183846797,-243.269686,0.00016986,2]
[350906270,1738183846807,-243.269686,0.00016986,2]
[350906271,1738183846816,-889.07,0.00016986,2]
[350906272,1738183846826,-1012.35,0.00016986,2]
[350906273,1738183846838,-243.269686,0.00016986,2]
[350906275,1738183846847,-243.269686,0.00016986,2]
[350906277,1738183846856,-151.0,0.00016986,2]
[350906279,1738183846866,-151.0,0.00016986,2]
[350906281,1738183846876,-151.0,0.00016986,2]
[350906283,1738183846885,-1232.38,0.00016986,2]
[350906285,1738183846896,-1187.18,0.00016986,2]
[350906287,1738183846905,-500.0,0.00016986,2]
[350906289,1738183846915,-151.0,0.00016986,2]
[350906291,1738183846925,-151.0,0.00016986,2]
[350906293,1738183846934,-1435.78,0.00016986,2]
[350906295,1738183846944,-151.0,0.00016986,2]
[350906297,1738183846954,-500.0,0.00016986,2]
[350906299,1738183846965,-726.76,0.00016986,2]
[350906301,1738183846975,-500.0,0.00016986,2]
[350906303,1738183846985,-1228.54,0.00016986,2]
[350906305,1738183846995,-151.0,0.00016986,2]
[350906307,1738183847004,-500.0,0.00016986,2]
[350906309,1738183847013,-500.0,0.00016986,2]
[350906311,1738183847022,-2000.0,0.00017,2]
[350906312,1738183847031,-300.0,0.00017,6]
[350906324,1738183847136,-2740.0,0.00017,3]
[350906326,1738183847147,-369.99305824,0.00017021,2]
[350906327,1738183847158,-1000.0,0.00017021,2]
[350906330,1738183847168,-151.0,0.00017027,3]
[350906332,1738183847177,-151.0,0.00017101,3]
[350906333,1738183847187,-500.0,0.00017123,2]
[350906336,1738183847200,-500.0,0.00017123,2]
[350906337,1738183847210,-500.0,0.00017123,2]
[350906339,1738183847220,-500.0,0.00017123,2]
[350906341,1738183847229,-500.0,0.00017123,2]
[350906343,1738183847239,-1026.64,0.00017123,2]
[350906346,1738183847249,-198.92424599,0.00017123,2]
[350906348,1738183847261,-301.07575401,0.00017123,2]
[350906350,1738183847270,-500.0,0.00017123,2]
[350906352,1738183847280,-500.0,0.00017123,2]
[350906353,1738183847289,-515.74,0.00017123,2]
[350906355,1738183847299,-692.01,0.00017123,2]
[350906357,1738183847308,-649.35,0.00017123,2]
[350906359,1738183847318,-516.86627514,0.00017123,2]
[350906361,1738183847327,-500.0,0.00017123,2]
[350906363,1738183847336,-108.42026131,0.00017123,2]
[350906365,1738183847348,-391.57973869,0.00017123,2]
[350906367,1738183847357,-796.2,0.00017123,2]
[350906369,1738183847367,-1031.44,0.00017123,2]
[350906371,1738183847376,-500.0,0.00017123,2]
[350906373,1738183847386,-618.3,0.00017123,2]
[350906376,1738183847398,-585.3,0.00017123,2]
[350906377,1738183847407,-560.82,0.00017123,2]